Cogmind - Beta 13 @@@ ROGUE MODE // 2024.03.17 @ 03:16:44 Player: Infomantis Result: Destroyed by MI-5AN(R) with Subdweller Beam Cannon Performance ------------- Evolutions (0) 0 Regions Visited (2) 400 Robots Destroyed (18) 90 Value Destroyed (357) 357 Prototype IDs (2) 40 Alien Tech Used (0) 0 Bonus (0) 0 TOTAL SCORE: 887 Bonus ------- None Cogmind --------- Core Integrity 0/250 Matter 235/300 Energy 100/100 System Corruption 0% Temperature Cool (45) Movement Treading (160) Location -10/Subcaves Parts ------- > --- POWER (1) -------- (None) > --- PROPULSION (2) --- Light Treads Spiked Treads > --- UTILITY (2) ------ Small Storage Unit Sensor Array > --- WEAPON (2) ------- Medium Laser Subdweller Beam Cannon > --- INVENTORY (8) ---- Light Treads Light Treads Compact Wheel Improved Terrain Scanner Seismic Detector Light Assault Rifle Grenade Launcher Mining Laser Peak State ------------ > --- POWER ------------ Ion Engine > --- PROPULSION ------- Light Treads Spiked Treads > --- UTILITY ---------- Small Storage Unit Sensor Array > --- WEAPON ----------- Subdweller Beam Cannon Light Assault Rifle > --- INVENTORY -------- Light Ion Engine Light Treads Compact Wheel Improved Terrain Scanner Seismic Detector Medium Laser Grenade Launcher Mining Laser [Rating: 10] Favorites ----------- Power Ion Engine Engine Ion Engine Propulsion Light Treads Treads Light Treads Utility Small Storage Unit Device Seismic Detector Storage Small Storage Unit Protection Backup Plating I Weapon Light Assault Rifle Energy Gun Medium Laser Energy Cannon Subdweller Beam Cannon Ballistic Gun Light Assault Rifle Launcher Grenade Launcher Build | -11 -10 -10 ------- Run | Yrd Mat Sub Slots Evolved . | . . . Power . | . . . Propulsion . | . . . Utility . | . . . Weapon . | . . . Parts Attached 21 | 7 4 10 Power 2 | 1 . 1 Engine 2 | 1 . 1 Core . | . . . Reactor . | . . . Propulsion 4 | 2 . 2 Treads 4 | 2 . 2 Leg . | . . . Wheel . | . . . Hover . | . . . Flight . | . . . Utility 5 | 2 . 3 Device 3 | 1 . 2 Storage 1 | 1 . . Processor . | . . . Hackware . | . . . Protection 1 | . . 1 Artifact . | . . . Weapon 10 | 2 4 4 Energy Gun 4 | 1 2 1 Energy Cannon 1 | . . 1 Ballistic Gun 3 | 1 1 1 Ballistic Cannon . | . . . Launcher 2 | . 1 1 Special Weapon . | . . . Impact Weapon . | . . . Slashing Weapon . | . . . Piercing Weapon . | . . . Special Melee Weapon . | . . . Unidentified Prototypes . | . . . Parts Lost 1 | . . 1 Power 1 | . . 1 Propulsion . | . . . Utility . | . . . Weapon . | . . . Highest Loss Streak 1 | . . 1 To Critical Strikes . | . . . Average Slot Usage (%) 100 | . 100 100 Engine 14 | . 14 14 Treads 28 | . 28 28 Device 13 | . 14 13 Storage 14 | . 14 14 Energy Gun 9 | . 14 1 Energy Cannon 4 | . . 12 Ballistic Gun 13 | . 13 12 Naked Turns . | . . . Heaviest Build 20 | 14 16 20 Greatest Support 40 | 40 40 40 Greatest Overweight (x) . | . . . Average Overweight (x) . | . . . Largest Inventory Capacity 8 | 8 8 8 Average Capacity 7 | 7 8 8 Most Carried 8 | 8 8 8 Average Carried 7 | 4 7 7 Final Capacity 8 | 8 8 8 Final Carried 8 | 8 8 8 Class Distribution -------------------- 100% | Mutant Dominant Class ---------------- Mutant | -10/Materials Mutant | -10/Subcaves Resources | -11 -10 -10 ----------- Run | Yrd Mat Sub Matter Collected 443 | 280 93 70 Remotely . | . . . Salvage Created 480 | 142 274 64 Parts 32 | 12 18 2 Haulers Intercepted 1 | . 1 . Recyclers Shooed . | . . . Parts Field Recycled . | . . . Retrieved Matter . | . . . Parts Self-Destructed 8 | . . 8 Prevented . | . . . Kills | -11 -10 -10 ------- Run | Yrd Mat Sub Combat Hostiles Destroyed 7 | . 5 2 Guns 6 | . 5 1 AOE 1 | . . 1 Classes Destroyed 7 | 2 4 1 Tunneler 5 | 4 1 . Hauler 1 | . 1 . Recycler 2 | 1 1 . Mechanic 1 | . 1 . Watcher 2 | . 2 . Grunt 5 | . 5 . Subdweller 2 | . . 2 Best Kill Streak 4 | 3 4 2 Combat Bots Only 2 | . 2 2 Max Kills in Single Turn 1 | 1 1 1 Gunslinging . | . . . Exploded 1 | . . 1 Melee . | . . . Uniques/NPCs Destroyed . | . . . Combat | -11 -10 -10 -------- Run | Yrd Mat Sub Hostile Shots Fired 35 | . 22 13 Missed 10 | . 9 1 Damage Taken 549 | . 167 382 Core 254 | . 48 206 Absorbed by Shields . | . . . Core Remaining (%) 100 | 100 . . Volleys Fired 47 | 10 28 9 Largest 2 | 2 2 2 Hottest 130 | 70 80 130 Shots Fired 90 | 20 55 15 Gun 78 | 20 52 6 Cannon 5 | . . 5 Launcher 7 | . 3 4 Special . | . . . Kinetic 35 | 10 25 . Thermal 48 | 10 27 11 Explosive 7 | . 3 4 Electromagnetic . | . . . Robot Hit Streak 8 | 5 6 8 Robot Miss Streak 3 | 3 2 3 Penetration Max . | . . . Secondary Targets . | . . . Shots Hit Robots 58 | 11 39 8 Core Hits 35 | 7 23 5 Critical Kills . | . . . Critical Parts Destroyed . | . . . Critical Strikes 2 | . 1 1 Burn 2 | . 1 1 Melee Attacks . | . . . Impact . | . . . Slashing . | . . . Piercing . | . . . Sneak Attacks . | . . . Combat Hostiles . | . . . Follow-up Attacks . | . . . Damage Inflicted 990 | 115 604 271 Guns 562 | 115 374 73 Cannons 52 | . . 52 Explosions 373 | . 227 146 Melee . | . . . Ramming 3 | . 3 . Kinetic 187 | 30 157 . Thermal 427 | 85 217 125 Explosive 373 | . 227 146 Electromagnetic . | . . . Impact . | . . . Slashing . | . . . Piercing . | . . . Highest Corruption . | . . . Average Corruption . | . . . Corruption Purged . | . . . Corruption Blocked . | . . . Overload Shots . | . . . Overflow Damage . | . . . Projectiles . | . . . Explosions . | . . . Melee . | . . . Knockbacks . | . . . Impact . | . . . Kinetic . | . . . Secondary . | . . . Self-Inflicted Damage 29 | . . 29 Shots 1 | . . 1 Rammed 1 | . 1 . Targets Rammed 2 | . 2 . Kicked . | . . . Crushed 1 | . 1 . Highest Temperature 550 | 100 127 550 Average Temperature 79 | 45 36 259 Received Heat Transfer 771 | . 93 678 Effects 4 | . . 4 Shutdowns 1 | . . 1 Interference 1 | . . 1 Damage (major) 1 | . . 1 Damage (core) 1 | . . 1 Siege Activations . | . . . Robots Corrupted . | . . . Combat Hostiles . | . . . Parts Fried . | . . . Impact Corruptions . | . . . Robots Melted . | . . . Combat Hostiles . | . . . Parts Melted 1 | . 1 . Heat Transferred 1308 | 259 679 370 Parts Sabotaged . | . . . Parts Stolen . | . . . Parts Stripped . | . . . Power Chain Reactions . | . . . Alert | -11 -10 -10 ------- Run | Yrd Mat Sub Peak Influence 150 | 25 150 . Initial 16 | . 16 . Average 38 | 10 42 . Maximum Alert Level . | . . . Low Security (%) 100 | 100 100 . Level 1 . | . . . Level 2 . | . . . Level 3 . | . . . Level 4 . | . . . Level 5 . | . . . High Security . | . . . Max Security . | . . . Squads Dispatched 1 | . 1 . Investigation 1 | . 1 . Extermination . | . . . Reinforcement . | . . . Assault . | . . . Garrison . | . . . Intercept . | . . . Searches Triggered . | . . . Construction Impeded . | . . . Haulers Reinforced . | . . . Active Scanning Responses . | . . . Cargo Convoy Interrupts . | . . . Stealth | -11 -10 -10 --------- Run | Yrd Mat Sub Distress Signals 1 | . 1 . Communications Jammed . | . . . Distress Signals . | . . . Times Spotted 17 | . 14 3 Peak Tracking Total 3 | . 3 2 Tactical Retreats 2 | . 2 . Traps | -11 -10 -10 ------- Run | Yrd Mat Sub Traps Triggered 1 | . 1 . Indirectly . | . . . Trap Hack Attempts . | . . . Triggered . | . . . Disarmed . | . . . Reprogrammed . | . . . Reused . | . . . Traps Extracted . | . . . Installed . | . . . Triggered . | . . . Machines | -11 -10 -10 ---------- Run | Yrd Mat Sub Machines Disabled . | . . . Max in Single Turn . | . . . Machines Repaired . | . . . Machines Dismantled . | . . . Machines Sabotaged . | . . . Overloaded Fab Kills . | . . . Hacking | -11 -10 -10 --------- Run | Yrd Mat Sub Machines Accessed 4 | . 4 . Terminals 3 | . 3 . Fabricators . | . . . Repair Stations . | . . . Recycling Units 1 | . 1 . Scanalyzers . | . . . Garrison Access . | . . . Total Hacks 10 | . 10 . Successful 5 | . 5 . Failed 4 | . 4 . Catastrophic . | . . . Database Lockouts 1 | . 1 . Manual 6 | . 6 . Terminals 9 | . 9 . Fabricators . | . . . Repair Stations . | . . . Recycling Units 1 | . 1 . Scanalyzers . | . . . Garrison Access . | . . . Terminal Hacks 3 | . 3 . Robot Analysis 1 | . 1 . Prototype ID Bank 1 | . 1 . Locate Traps 1 | . 1 . Fabricator Hacks . | . . . Repair Station Hacks . | . . . Recycling Unit Hacks . | . . . Scanalyzer . | . . . Garrison Access Hacks . | . . . Unauthorized Hacks 2 | . 2 . Terminals 1 | . 1 . Botnet 1 | . 1 . Fabricators . | . . . Repair Stations . | . . . Recycling Units 1 | . 1 . Recyclers 1 | . 1 . Scanalyzers . | . . . Garrison Access . | . . . Data Cores Recovered . | . . . Used . | . . . Hacking Detections 2 | . 2 . Full Trace Events . | . . . Feedback Events . | . . . Feedback Blocked . | . . . Robot Schematics Acquired . | . . . Robots Built . | . . . Authchips . | . . . Time . | . . . Total Robot Build Rating . | . . . Part Schematics Acquired . | . . . Parts Built . | . . . Authchips . | . . . Time . | . . . Total Part Build Rating . | . . . Parts Repaired . | . . . Time . | . . . Parts Recycled . | . . . Recycled Matter . | . . . Retrieved Matter . | . . . Retrieved Components . | . . . Parts Scanalyzed . | . . . Part Schematics Acquired . | . . . Parts Damaged . | . . . Bothacking | -11 -10 -10 ------------ Run | Yrd Mat Sub Used RIF Installer . | . . . Robots Hacked . | . . . Non-combat . | . . . Combat . | . . . Robot Hacks Applied . | . . . Relay Couplers Released . | . . . Fabnet Peak Effective % . | . . . Robots Rewired . | . . . Allies Hacked . | . . . Hacks Repelled . | . . . Allies | -11 -10 -10 -------- Run | Yrd Mat Sub Total Allies . | . . . Largest Group . | . . . Highest-Rated Group . | . . . Highest-Rated Ally . | . . . Total Orders . | . . . Ally Attacks . | . . . Total Damage . | . . . Kills . | . . . Allies Corrupted . | . . . Allies Melted . | . . . Intel | -11 -10 -10 ------- Run | Yrd Mat Sub Robot Analysis Total 1 | . 1 . Derelict Logs Recovered . | . . . Drone Launches . | . . . Drone Recoveries . | . . . Exploration | -11 -10 -10 ------------- Run | Yrd Mat Sub Turns Passed 1828 | 127 1033 668 Spaces Moved 888 | 54 464 370 Core 4 | 4 . . Treads 884 | 50 464 370 Legs . | . . . Wheels . | . . . Hover . | . . . Flight . | . . . Fastest Speed 50 | 50 160 160 Average Speed 159 | 151 160 160 Slowest Speed 160 | 160 160 160 Overloaded Moves . | . . . Propulsion Burnouts . | . . . Robots Hopped . | . . . Cave-ins Triggered . | . . . Exploration Rate (%) 24 | 5 54 14 Regions Visited 2 Branch Regions 1 Pre-discovered Areas . | . . . Known Exits Taken . | . . . Unknown Exits Taken 2 | 1 1 . Scrap Searched . | . . . Spaces Dug . | . . . Terrain Destroyed 35 | . 13 22 Melee . | . . . Projectile . | . . . AOE 35 | . 13 22 Terrain Rammed . | . . . Walls Destroyed . | . . . Machines Disabled . | . . . Actions | -11 -10 -10 --------- Run | Yrd Mat Sub Total 1212 | 78 706 428 Wait 233 | . 199 34 Move 886 | 53 463 370 Hop . | . . . Pick Up 14 | 8 4 2 Fast Attach 7 | 7 . . Attach . | . . . Detach . | . . . Swap 14 | . 4 10 Drop 9 | . 6 3 Fire 47 | 10 28 9 Melee . | . . . Ram . | . . . Kick . | . . . Crush 2 | . 2 . Escape Stasis . | . . . Rewire . | . . . Trap . | . . . Miscellaneous . | . . . Route ------- -11/Scrapyard -10/Materials (discovered 4 exits: [*Mat x2] / [*Min] / [*Sub]) -10/Subcaves (discovered 1 exit: [*Mat]) History --------- Turn | Location | Event 13 | -11/Scrapyard | Discovered new exit (range 14) 128 | -11/Scrapyard | Entered Materials 300 | -10/Materials | Build established: Mutant 385 | -10/Materials | Discovered new exit (range 11) 466 | -10/Materials | Central database locked down 729 | -10/Materials | Discovered new exit (range 16) 952 | -10/Materials | Discovered new exit (range 6) 1145 | -10/Materials | Discovered new exit (range 11) 1161 | -10/Materials | Entered Subcaves 1179 | -10/Subcaves | Ambushed by Subdwellers from Twisted Machinery 1189 | -10/Subcaves | Core integrity fell below 50% 1193 | -10/Subcaves | Core integrity fell below 20% 1271 | -10/Subcaves | Discovered new exit (range 14) 1275 | -10/Subcaves | A swath of the cavern ceiling suddenly collapsed 1829 | -10/Subcaves | Destroyed by MI-5AN(R) with Subdweller Beam Cannon Last Messages --------------- 01200_ The unstable cave ceiling collapses. 01204_ Overheating: System interference. 01204_ Sensor Array temporarily disabled. 01214_ 0N-B9O(O) collects matter. 01219_ The unstable cave ceiling collapses. 01233_ Dropped Backup Plating I. 01233_ Acquired Sub. Beam Cannon. 01253_ 0N-B9O(O) collects matter. 01271_ EXIT=FOUND A swath of the cavern ceiling suddenly collapses. 01448_ Dropped Lgt. Treads. 01452_ Dropped Ion Engine. 01453_ Acquired Lgt. Treads. 01521_ Acquired 7 matter. 01523_ Acquired 5 matter. 01531_ Acquired 14 matter. 01534_ Acquired 15 matter. 01537_ Acquired 14 matter. 01545_ Acquired 5 matter. 01829_ Lgt. Ion Engine destroyed. Map ----- +----------------------------------------------------+ | ?## ## ## ##?# #### #????????????????? | | ### ### ## ###??????????????? | | #??????????????? | | # ## ##?????????????? | | ##### ### #?????????????? | | #???# #### ##### ##?????????????? | | #???# #?### ##???## #??????????????? | | ???## #???## ##?????# #??????????????? | | ???# #?####" ##????## #??????????????? | | ???## ###"##"# #????# ##??????????????? | | ????# # #"#"####"#????# ##??????????????? | | ????######""##"#"#????# #??????????????? | | ????#""##""###""#####?## ##??????????????? | | ???##""##"#"####### ### #???????????????? | | ####""#""#####""#""" ## ##??????????????? | | """"## ####""""# ## #??????????????? | | # #"#### "# ##"## ##??????????????? | | # ########""###### ##?????????????? | | #??????##"#????## #?????????????? | | ###???????###??##?## ##?????????????? | | ##??????????????# ## #??????????????? | | #????????????# ### ## #??????????????? | | #?????????????# " ## #??????????????? | | ?????????????# " ## ##?????????????? | | ?????????????"& & ### #?????????????? | | ?????????????# ##?#@ #?????????????? | | ?????????????# " #???##R #?????????????? | | ????????????# #????## #?????????????? | | ???????????# ?????# #?????????????? | | ???????????# ?????# #?????????????? | | ???????????## ?????#? #?????????????? | | ????????????## ??????# #?????????????? | | ?????????????#### ?????? ##?????????????? | | ????????????????# ????? #??????????????? | | ?????????????????????? ##??????????????? | | ?????????????????????? ##????????????????? | | ?????????????????????# ??????????????????? | | ????????????????????? ??????????????????? | | ???????????????????? ??????????????????? | | ???????????????????? ???????????????????? | | ??????????????????? ???????????????????? | | ?????????????????? ???????????????????? | | ???????????????????##?????????????????????? | | ??????????????????????????????????????????? | | ??????????????????????????????????????????? | | ??????????????????????????????????????????? | | ??????????????????????????????????????????? | | ??????????????????????????????????????????? | | ??????????????????????????????????????????? | | ??????????????????????????????????????????? | +----------------------------------------------------+ Best States ------------- Heat Dissipation 25 Energy Generation 10 Energy Capacity 250 Matter Stores 300 Matter Capacity 300 Sight Range 16 Robot Scan Range 14 Terrain Scan Density 10 Armor Coverage 80 Evasion (%) 40 Recoil Reduction 2 Item Schematics ----------------- None Robot Schematics ------------------ None Fabricated ------------ Nothing Alien Tech Used ----------------- None Achievements -------------- None Challenges ------------ None Game ------ Seed TargetDefenseBay Manual? 0 Play Time 00:13:52 Cumulative 382.4 hours Start 2024.03.17 @ 03:04:21 End 2024.03.17 @ 03:16:44 Sessions 1 Manual Loads 0 Difficulty Rogue Special Mode None Game No. 252 Rogue 229 Adventurer 6 Explorer 17 Win Type - Total 29 Types 21/0/4/1/0/1/1/1/0 Lore% 92 Gallery% 95 Achievement% 79 Wizard Run 0 Options --------- Layout 1 ASCII 0 Keyboard 0 Movement Numpad Keybinds 0 Fullscreen 1 Font 16/TamsynBold Map View 55x38 Zoom Use 0% Tactical HUD 1 Map Filters NONE Filters NONE Steam 1 RUN: 77aa62be-f2af-448e-9ca7-ec60d751f283